bitfinex/quotes_SOLUSD_20250903
["timestamp","ask_amount","ask_price","bid_price","bid_amount"]
[1756897900863,4.41996004,211.08,211.04,37.77]
[1756897901244,0.06,211.09,211.05,0.67]
[1756897901545,0.06,211.09,211.06,4.41996004]
[1756897901750,0.06,211.09,211.07,0.67]
[1756897902158,0.06,211.09,211.08,0.67]
[1756897903472,0.06,211.09,211.06,2.82477981]
[1756897903655,0.06,211.09,211.08,37.1]
[1756897905458,0.06,211.09,211.08,37.77]
[1756897905666,0.06,211.09,211.08,37.1]
[1756897911247,0.06,211.09,211.07,0.67]
[1756897911550,2.82477981,211.08,211.04,37.1]
[1756897911754,2.82477981,211.07,211.04,37.1]
[1756897912372,2.82477981,211.07,211.05,37.08]
[1756897912551,0.69,211.08,211.05,37.08]
[1756897912753,2.82477981,211.07,211.05,37.08]
[1756897912953,2.82477981,211.07,211.04,37.08]
[1756897913155,2.82477981,211.07,211.05,0.67]
[1756897914168,2.82477981,211.07,211.04,37.08]
[1756897914475,2.82477981,211.07,211.04,37.75]
[1756897915170,3.51477981,211.07,211.05,37.08]
[1756897915363,2.82477981,211.07,211.05,37.75]
[1756897915561,2.82477981,211.07,211.05,37.08]
[1756897915764,0.75,211.09,211.05,37.08]
[1756897916077,2.82477981,211.07,211.05,37.08]
[1756897918259,2.82477981,211.06,211.04,37.08]
[1756897918472,2.82477981,211.07,211.04,37.08]
[1756897918658,2.82477981,211.08,211.04,37.75]
[1756897919056,2.82477981,211.07,211.04,37.75]
[1756897919368,3.51477981,211.06,211.04,37.08]
[1756897919567,2.82477981,211.06,211.04,37.08]
[1756897920070,2.82477981,211.06,211.03,37.75]
[1756897920593,2.82477981,211.06,211.04,0.67]
[1756897921377,0.75,211.09,211.04,0.67]
[1756897921378,2.82477981,211.07,211.04,0.67]
[1756897922151,2.82477981,211.07,211.05,0.67]
[1756897924160,0.75,211.09,211.05,0.67]
[1756897924357,2.82477981,211.07,211.05,0.67]
[1756897925181,0.06,211.06,211.05,0.67]
[1756897925585,0.06,211.06,211.05,3.49477981]
[1756897926171,0.06,211.06,211.05,40.57477981]
[1756897926763,0.06,211.06,211.05,37.75]
[1756897926964,0.06,211.06,211.05,40.57477981]
[1756897928074,0.06,211.06,211.05,3.49477981]
[1756897928275,0.06,211.06,211.05,40.57477981]
[1756897934695,0.06,211.06,211.05,120.27477981]
[1756897937092,0.06,211.06,211.05,83.19477981]
[1756897937296,0.06,211.06,211.05,120.25477981]
[1756897938101,0.06,211.06,211.05,117.43]
[1756897938281,0.06,211.06,211.05,120.25477981]
[1756897938471,0.06,211.06,211.05,80.37]
[1756897938671,0.06,211.06,211.05,119.58477981]
[1756897938881,0.06,211.06,211.05,120.26477981]
[1756897939991,0.06,211.06,211.05,83.20477981]
[1756897940290,0.06,211.06,211.05,120.26477981]
[1756897941697,0.06,211.06,211.05,117.44]
[1756897941888,0.06,211.06,211.05,120.26477981]
[1756897945098,0.06,211.06,211.05,83.20477981]
[1756897945304,0.06,211.06,211.05,120.24477981]
[1756897949318,0.06,211.06,211.05,80.38]
[1756897949609,0.06,211.06,211.05,120.24477981]
[1756897950285,0.06,211.06,211.05,83.20477981]
[1756897950490,0.06,211.06,211.05,120.24477981]
[1756897951110,0.06,211.06,211.05,83.20477981]
[1756897951312,0.06,211.06,211.05,120.24477981]
[1756897952023,0.06,211.06,211.05,133.84037382]
[1756897952314,0.06,211.06,211.05,135.73885267]
[1756897954320,0.06,211.06,211.05,56.03885267]
[1756897957219,0.06,211.06,211.05,56.60743831]
[1756897958602,0.06,211.06,211.05,136.30743831]
[1756897958922,0.06,211.06,211.05,135.73885267]
[1756897959814,0.06,211.06,211.05,132.91407286]
[1756897960014,0.06,211.06,211.05,135.73885267]
[1756897960714,0.06,211.09,211.06,13.59559401]
[1756897960915,0.06,211.09,211.08,27.71949306]
[1756897961302,0.06,211.09,211.08,30.29770163]
[1756897962097,0.06,211.09,211.08,67.31770163]
[1756897962315,0.06,211.09,211.08,30.29770163]
[1756897962521,0.06,211.09,211.08,67.31770163]
[1756897964427,0.06,211.09,211.08,81.59820857]
[1756897964622,0.06,211.09,211.08,119.54477981]
[1756897965634,0.06,211.09,211.08,121.13198216]
[1756897965919,0.06,211.09,211.08,123.03037091]
[1756897967202,0.06,211.09,211.08,123.70037091]
[1756897967828,0.06,211.09,211.08,123.03037091]
[1756897968140,0.06,211.09,211.08,123.70037091]
[1756897968402,0.06,211.09,211.08,123.68037091]
[1756897970514,0.06,211.09,211.08,123.01037091]
[1756897970707,0.06,211.09,211.08,86.01037091]
[1756897970907,0.06,211.09,211.08,123.01037091]
[1756897972523,0.06,211.09,211.08,86.01037091]
[1756897972737,0.06,211.09,211.08,123.01037091]
[1756897974126,0.06,211.09,211.08,86.01037091]
[1756897974736,0.06,211.09,211.08,123.01037091]
[1756897975026,0.06,211.09,211.08,121.11198216]
[1756897975331,0.06,211.09,211.08,118.59856895]
[1756897975639,0.06,211.09,211.08,123.01055111]
[1756897975846,0.77,211.09,211.08,81.59856895]
[1756897976133,0.77,211.09,211.08,37.0]
[1756897979817,0.77,211.09,211.06,0.03]
[1756897980021,5.18198216,211.09,211.07,36.98]
[1756897980216,5.12198216,211.08,211.06,0.03]
[1756897980424,4.41198216,211.07,211.06,0.03]
[1756897980728,4.41198216,211.07,211.06,37.01]
[1756897980913,5.12198216,211.07,211.06,37.01]
[1756897981317,0.71,211.07,211.06,37.01]
[1756897981527,26.71,211.07,211.06,37.01]
[1756897982031,0.71,211.07,211.06,37.01]
[1756897982411,4.47198216,211.09,211.06,37.01]
[1756897982412,0.06,211.09,211.06,37.01]
[1756897982615,0.06,211.09,211.06,41.42198216]
[1756897982824,0.06,211.09,211.07,4.41198216]
[1756897983028,0.06,211.09,211.08,36.98]
[1756897983632,0.06,211.09,211.08,42.06198216]
[1756897984938,0.06,211.09,211.08,41.39198216]
[1756897985539,0.06,211.09,211.08,36.98]
[1756897986818,0.06,211.09,211.06,0.03]
[1756897987021,0.77,211.09,211.06,0.03]
[1756897987239,0.71,211.08,211.07,36.98]
[1756897987443,0.06,211.09,211.07,41.39198216]
[1756897987625,0.06,211.09,211.07,37.65]
[1756897987941,0.06,211.09,211.07,36.98]
[1756897988126,0.77,211.09,211.08,36.98]
[1756897988537,0.77,211.09,211.06,0.03]
[1756897988728,0.06,211.09,211.08,36.98]
[1756897989244,0.77,211.09,211.08,36.98]
[1756897990335,0.77,211.09,211.06,0.03]
[1756897990540,0.06,211.09,211.08,36.98]
[1756897990839,0.06,211.09,211.08,42.06198216]
[1756897992321,0.06,211.09,211.08,37.65]
[1756897992742,0.06,211.09,211.08,36.98]
[1756897995535,0.73,211.09,211.08,36.98]
[1756897996131,0.06,211.09,211.08,36.98]
[1756897996339,0.73,211.09,211.08,36.98]
[1756897996638,0.06,211.09,211.08,36.98]
[1756897997040,0.73,211.09,211.08,36.98]
[1756897997239,0.06,211.09,211.08,36.98]
[1756897998518,0.06,211.09,211.08,37.66]
[1756897998719,0.06,211.09,211.08,36.98]
[1756897999547,0.06,211.09,211.08,42.07198216]
[1756898000130,0.06,211.09,211.08,37.66]
[1756898000442,0.06,211.09,211.08,42.07198216]
[1756898001125,0.06,211.09,211.08,37.66]
[1756898001950,0.06,211.09,211.08,42.07198216]
[1756898002254,0.06,211.09,211.08,43.970461]
[1756898002742,0.06,211.09,211.08,39.55847884]
[1756898002926,0.06,211.09,211.08,43.970461]
[1756898005844,0.06,211.09,211.08,39.55847884]
[1756898006031,0.06,211.09,211.08,123.670461]
[1756898006230,0.06,211.09,211.08,86.690461]
[1756898006439,0.06,211.09,211.08,123.650461]
[1756898011122,0.06,211.09,211.08,128.32063273]
[1756898011941,0.06,211.09,211.08,48.62063273]
[1756898014756,0.06,211.09,211.08,7.24865057]
[1756898014942,0.06,211.09,211.08,48.60063273]
[1756898017658,0.06,211.09,211.08,7.24865057]
[1756898017854,0.06,211.09,211.08,91.36063273]
[1756898018053,0.06,211.09,211.08,128.30063273]
[1756898018360,0.06,211.09,211.08,123.88865057]
[1756898018562,0.06,211.09,211.08,128.30063273]
[1756898019054,0.06,211.09,211.08,127.62063273]
[1756898019244,0.06,211.09,211.08,123.88865057]
[1756898019640,0.06,211.09,211.08,127.62063273]
[1756898020154,0.06,211.09,211.08,128.30063273]
[1756898024957,0.06,211.09,211.08,141.89622674]
[1756898026662,0.06,211.09,211.08,137.22605501]
[1756898027469,0.06,211.09,211.08,135.63717591]
[1756898027668,0.06,211.09,211.08,121.3415819]
[1756898027965,0.06,211.09,211.08,122.0015819]
[1756898028189,0.06,211.09,211.08,121.3415819]
[1756898028468,0.06,211.09,211.08,122.0015819]
[1756898032051,0.06,211.09,211.08,135.59717591]
[1756898032776,0.06,211.09,211.08,138.42027897]
[1756898033866,0.06,211.09,211.08,138.70460211]
[1756898038470,0.06,211.09,211.08,95.85407285]
[1756898038667,0.06,211.09,211.08,135.57717591]
[1756898038870,0.06,211.09,211.08,121.3215819]
[1756898039967,0.06,211.09,211.08,126.04915239]
[1756898040164,0.06,211.09,211.08,86.32604933]
[1756898040370,0.77,211.09,211.08,126.04915239]
[1756898040567,0.77,211.09,211.08,81.59847884]
[1756898040879,0.77,211.09,211.08,118.49847884]
[1756898041267,0.77,211.09,211.08,116.6]
[1756898041469,0.77,211.09,211.08,121.32176213]
[1756898041670,0.77,211.09,211.08,118.49865907]
[1756898041864,0.77,211.09,211.08,36.9]
[1756898042085,0.77,211.09,211.06,79.73]
[1756898042086,0.77,211.09,211.07,1.89874919]
[1756898042264,0.71,211.08,211.06,0.03]
[1756898042467,0.71,211.08,211.07,36.9]
[1756898044485,0.71,211.08,211.06,0.03]
[1756898044486,3.53310306,211.08,211.06,0.03]
[1756898044679,2.82310306,211.07,211.06,0.03]
[1756898044878,3.53310306,211.08,211.06,36.93]
[1756898045079,2.82310306,211.08,211.06,36.93]
[1756898045279,0.71,211.07,211.06,36.93]
[1756898047563,3.53310306,211.07,211.06,36.93]
[1756898048792,0.71,211.07,211.06,36.93]
[1756898049093,3.53310306,211.07,211.06,36.93]
[1756898049285,0.71,211.07,211.06,36.93]
[1756898049671,26.77,211.09,211.06,36.93]
[1756898050472,0.77,211.09,211.06,36.93]
[1756898053187,0.06,211.09,211.07,2.82310306]
[1756898055466,0.06,211.09,211.06,118.5287492]
[1756898055683,0.06,211.09,211.07,2.82310306]
[1756898055888,0.06,211.09,211.08,36.88]
[1756898057674,0.06,211.09,211.08,39.70310306]
[1756898058089,0.06,211.09,211.08,55.19708582]
[1756898058678,0.06,211.09,211.08,66.48949806]
[1756898064173,0.06,211.09,211.08,132.92681073]
[1756898064401,0.06,211.09,211.08,109.5938212]
[1756898064695,0.06,211.09,211.08,146.4738212]
[1756898067405,0.06,211.09,211.08,109.5938212]
[1756898068097,0.06,211.09,211.08,146.4538212]
[1756898068279,0.06,211.09,211.08,66.7538212]
[1756898069498,0.06,211.09,211.08,29.8938212]
[1756898069687,0.06,211.09,211.08,66.7538212]
[1756898071310,0.06,211.09,211.08,84.42149181]
[1756898071517,0.06,211.09,211.08,121.28149181]
[1756898071808,0.06,211.09,211.08,84.42149181]
[1756898072111,0.06,211.09,211.08,121.28149181]
[1756898074099,0.06,211.09,211.08,84.42149181]
[1756898074303,0.06,211.09,211.08,121.28149181]
[1756898074714,0.06,211.09,211.08,84.42149181]
[1756898074914,0.06,211.09,211.08,121.28149181]
[1756898075411,0.06,211.09,211.08,118.45838875]
[1756898075713,0.06,211.09,211.08,121.28149181]
[1756898076210,0.06,211.09,211.08,1.89838875]
[1756898076507,0.06,211.09,211.08,36.86]
[1756898076711,0.06,211.09,211.06,0.03]
[1756898076918,0.06,211.09,211.07,36.86]
[1756898080792,0.06,211.09,211.06,0.03]
[1756898080996,0.06,211.09,211.07,36.86]
[1756898081310,0.06,211.09,211.08,36.86]
[1756898081711,0.06,211.09,211.06,0.03]
[1756898081894,0.06,211.09,211.07,36.86]
[1756898082412,0.06,211.09,211.06,0.03]
[1756898082717,0.06,211.09,211.08,36.86]
[1756898083217,0.06,211.09,211.06,0.03]
[1756898083415,0.06,211.09,211.07,36.86]
[1756898084112,0.06,211.09,211.07,39.68310306]
[1756898084898,0.06,211.09,211.07,36.86]
[1756898085119,0.06,211.09,211.07,39.68310306]
[1756898085897,0.06,211.09,211.07,36.86]
[1756898088812,0.06,211.09,211.08,36.86]
[1756898089194,0.06,211.09,211.08,41.27363196]
[1756898091917,0.06,211.09,211.08,36.86]
[1756898092101,0.06,211.09,211.08,41.27363196]
[1756898092302,0.06,211.09,211.08,36.86]
[1756898092521,0.06,211.09,211.08,41.27363196]
[1756898095825,0.06,211.09,211.08,41.25363196]
[1756898097324,0.06,211.09,211.06,0.03]
[1756898097704,0.06,211.09,211.07,36.84]
[1756898100415,0.06,211.09,211.08,36.84]
[1756898111039,4.47363196,211.09,211.06,0.03]
[1756898111215,4.41363196,211.07,211.06,0.03]
[1756898111417,0.06,211.09,211.06,0.03]
[1756898111633,0.06,211.09,211.06,36.87]
[1756898112139,0.06,211.09,211.07,4.41363196]
[1756898113241,0.06,211.09,211.08,0.68]
[1756898114345,0.06,211.09,211.08,5.09363196]
[1756898115245,0.06,211.09,211.08,18.68922597]
[1756898115537,0.06,211.09,211.08,20.58743453]
[1756898116217,0.06,211.09,211.08,25.00106649]
[1756898116418,0.06,211.09,211.08,25.85389446]
[1756898118147,0.06,211.11,211.09,13.87991715]
[1756898118436,0.06,211.11,211.1,51.28836812]
[1756898118618,0.06,211.11,211.1,56.38200008]
[1756898119015,0.06,211.11,211.1,51.96836812]
[1756898119241,0.06,211.11,211.1,56.38200008]
[1756898120544,0.06,211.11,211.1,56.36200008]
[1756898122951,0.06,211.11,211.1,18.68922597]
[1756898123121,0.06,211.11,211.1,55.50922597]
[1756898123545,0.06,211.11,211.1,80.38]
[1756898123744,0.06,211.11,211.1,121.61363196]
[1756898123935,0.06,211.11,211.1,135.20922597]
[1756898124548,0.06,211.11,211.1,135.49354911]
[1756898125441,0.06,211.11,211.1,131.07991715]
[1756898125643,0.06,211.11,211.1,135.49354911]
[1756898125829,0.06,211.11,211.1,137.39148747]
[1756898127124,0.06,211.11,211.1,137.10716433]
[1756898128146,0.06,211.11,211.1,99.60716433]
[1756898128441,0.06,211.11,211.1,134.52922597]
[1756898128644,0.06,211.11,211.1,120.93363196]
[1756898129018,0.06,211.11,211.1,121.61363196]
[1756898129621,0.06,211.11,211.1,135.20922597]
[1756898132149,0.06,211.11,211.1,134.52922597]
[1756898132639,0.06,211.11,211.1,79.7]
[1756898132847,0.06,211.11,211.1,120.93363196]
[1756898133151,0.06,211.11,211.1,135.20922597]
[1756898133859,0.06,211.12,211.11,13.87991715]
[1756898134039,0.06,211.12,211.11,18.97354911]
[1756898134523,0.06,211.12,211.11,19.54197315]
[1756898137239,0.06,211.12,211.11,21.43973142]
[1756898139332,0.06,211.12,211.11,101.13973142]
[1756898139642,0.06,211.12,211.11,137.37130738]
[1756898139847,0.06,211.12,211.11,122.81139023]
[1756898140033,0.06,211.12,211.11,120.91363196]
[1756898142051,0.06,211.12,211.11,121.58363196]
[1756898142431,0.06,211.12,211.11,117.17]
[1756898142636,0.06,211.12,211.11,120.91363196]
[1756898142945,0.06,211.12,211.11,135.17922597]
[1756898143340,0.06,211.12,211.11,135.46354911]
[1756898143645,0.06,211.12,211.11,137.36139742]
[1756898147858,0.06,211.12,211.11,99.89139742]
[1756898148050,0.06,211.12,211.11,136.69139742]
[1756898148262,0.06,211.12,211.11,137.36139742]
[1756898149262,0.06,211.12,211.11,95.19344232]
[1756898149447,0.06,211.12,211.11,134.8155804]
[1756898150142,0.06,211.12,211.11,98.0155804]
[1756898150347,0.06,211.12,211.11,134.8155804]
[1756898152964,0.06,211.12,211.11,135.4855804]
[1756898153166,0.06,211.12,211.11,134.8155804]
[1756898154053,0.75,211.12,211.11,134.8155804]
[1756898154657,0.06,211.12,211.11,134.8155804]
[1756898158465,0.06,211.12,211.11,81.59784831]
[1756898158773,0.75,211.12,211.09,0.03]
[1756898159074,0.75,211.12,211.1,36.8]
[1756898159251,0.69,211.11,211.1,36.8]
[1756898159750,0.69,211.11,211.09,0.03]
[1756898159959,0.69,211.11,211.1,36.8]
[1756898166891,0.69,211.11,211.09,0.03]
[1756898167063,2.82213808,211.1,211.09,0.03]
[1756898167556,3.51213808,211.1,211.09,0.03]
[1756898171268,5.41133804,211.1,211.09,0.03]
[1756898172274,19.00693205,211.1,211.09,0.03]
[1756898172475,16.18479397,211.1,211.09,0.03]
[1756898172678,19.00693205,211.1,211.09,0.03]
[1756898174863,21.82907013,211.1,211.09,0.03]
[1756898175282,19.00693205,211.1,211.09,0.03]
[1756898182172,30.29548437,211.1,211.09,0.03]
[1756898182387,13.59559401,211.09,211.08,0.03]
[1756898182689,27.70628441,211.09,211.07,0.03]
[1756898182871,48.42628441,211.08,211.06,0.03]
[1756898183066,39.62213808,211.07,211.06,0.03]
[1756898183266,41.52196947,211.07,211.06,0.03]
[1756898183491,42.24196947,211.07,211.06,0.03]
[1756898185388,5.44196947,211.07,211.06,0.03]
[1756898185564,42.24196947,211.07,211.06,0.03]
[1756898185767,1.89983139,211.07,211.06,0.03]
[1756898185989,18.31756348,211.07,211.06,0.03]
[1756898186582,19.03756348,211.07,211.06,0.03]
[1756898187284,18.31756348,211.07,211.06,0.03]
[1756898187478,19.03756348,211.07,211.06,0.03]
[1756898188474,18.31756348,211.07,211.06,0.03]
[1756898188688,19.03756348,211.07,211.06,0.03]
[1756898189287,18.31756348,211.07,211.06,0.03]
[1756898189894,19.03756348,211.07,211.06,0.03]
[1756898190696,18.31756348,211.07,211.06,0.03]
[1756898191497,19.03756348,211.07,211.06,0.03]
[1756898192098,55.83756348,211.07,211.06,0.03]
[1756898192294,52.2954254,211.07,211.06,0.03]
[1756898192501,55.11756348,211.07,211.06,0.03]
[1756898193493,55.83756348,211.07,211.06,0.03]
[1756898195896,18.31756348,211.07,211.06,0.03]
[1756898196072,18.31756348,211.07,211.06,0.73]
[1756898196279,27.89983139,211.07,211.06,0.73]
[1756898196597,2.82213808,211.09,211.06,0.73]
[1756898196779,28.82213808,211.09,211.06,0.73]
[1756898197590,26.0,211.09,211.06,0.73]
[1756898197883,28.82213808,211.09,211.06,0.73]
[1756898199204,2.82213808,211.08,211.06,0.73]
[1756898199799,26.0,211.07,211.06,0.03]
[1756898200393,2.82213808,211.08,211.06,0.73]
[1756898200592,2.82213808,211.08,211.07,0.7]
[1756898200780,2.82213808,211.08,211.06,0.03]
[1756898200984,2.82213808,211.07,211.06,0.03]
[1756898201611,28.82213808,211.07,211.06,0.03]
[1756898202115,2.82213808,211.07,211.06,0.03]
[1756898202681,17.13773209,211.07,211.06,0.03]
[1756898203403,1.89947052,211.09,211.06,0.69]
[1756898203612,28.82213808,211.07,211.06,0.69]
[1756898203909,28.82213808,211.07,211.06,0.03]
[1756898204300,28.82213808,211.07,211.06,0.69]
[1756898205008,28.88213808,211.07,211.06,0.69]
[1756898206595,28.88213808,211.07,211.06,0.03]
[1756898206798,43.19773209,211.07,211.06,0.03]
[1756898207196,81.89747325,211.07,211.06,0.03]
[1756898208395,81.89747325,211.07,211.04,0.03]
[1756898208609,2.82213808,211.05,211.04,0.03]
[1756898209114,1.90001188,211.05,211.04,0.03]
[1756898209412,16.41773209,211.05,211.04,0.03]
[1756898209591,16.41773209,211.05,211.04,0.69]
[1756898211018,16.41773209,211.05,211.04,0.03]
[1756898211718,18.01291068,211.05,211.04,0.03]
[1756898214426,54.81291068,211.05,211.04,0.03]
[1756898214818,18.01291068,211.05,211.04,0.03]
[1756898214999,54.81291068,211.05,211.04,0.03]
[1756898215497,18.01291068,211.05,211.04,0.03]
[1756898215708,54.81291068,211.05,211.04,0.03]
[1756898215914,18.01291068,211.05,211.04,0.03]
[1756898216122,55.53291068,211.05,211.04,0.03]
[1756898216718,57.43283231,211.05,211.04,0.03]
[1756898216916,53.01551564,211.05,211.04,0.03]
[1756898217100,56.71283231,211.05,211.04,0.03]
[1756898217722,57.43283231,211.05,211.04,0.03]
[1756898218605,57.43283231,211.05,211.03,0.03]
[1756898218818,5.13731667,211.04,211.03,0.03]
[1756898219520,7.0374188,211.04,211.03,0.03]
[1756898219709,10.58911256,211.04,211.03,0.03]
[1756898220212,9.86911256,211.04,211.03,0.03]
[1756898220417,10.58911256,211.04,211.03,0.03]
[1756898220617,47.38911256,211.04,211.03,0.03]
[1756898220833,46.66911256,211.04,211.03,0.03]
[1756898221706,56.71301281,211.04,211.03,0.03]
[1756898222113,57.43301281,211.04,211.03,0.03]
[1756898222505,56.71301281,211.04,211.03,0.03]
[1756898223422,19.91301281,211.04,211.03,0.69]
[1756898223625,52.29569614,211.04,211.03,0.69]
[1756898223820,56.71301281,211.04,211.03,0.69]
[1756898224126,56.71301281,211.04,211.03,0.03]
[1756898226108,19.91301281,211.04,211.03,0.03]
[1756898226426,4.41731667,211.05,211.03,0.69]
[1756898226611,50.39559401,211.05,211.03,0.03]
[1756898226815,54.81291068,211.05,211.03,0.69]
[1756898227516,4.41731667,211.06,211.04,0.66]
[1756898227727,26.0,211.04,211.03,0.03]
[1756898227908,0.06,211.07,211.03,4.44731667]
[1756898228235,26.06,211.07,211.06,4.41731667]
[1756898228411,26.06,211.07,211.06,5.07731667]
[1756898228613,0.06,211.07,211.06,5.07731667]
[1756898231636,0.06,211.07,211.06,0.66]
[1756898234119,0.06,211.07,211.06,5.07731667]
[1756898235409,0.06,211.07,211.06,4.84731667]
[1756898237024,0.06,211.07,211.06,0.43]
[1756898240435,0.06,211.07,211.06,0.46]
[1756898241630,0.06,211.07,211.06,0.03]
[1756898242134,0.06,211.07,211.06,0.73]
[1756898242736,0.06,211.07,211.06,0.03]
[1756898242942,26.06,211.07,211.06,0.03]
[1756898244040,4.47731667,211.07,211.06,0.03]
[1756898245040,0.06,211.07,211.06,0.73]
[1756898248037,4.47731667,211.07,211.06,0.03]
[1756898251450,26.06,211.07,211.06,0.73]
[1756898252039,0.06,211.07,211.06,0.73]
[1756898252241,0.06,211.07,211.06,5.14731667]
[1756898252447,0.06,211.07,211.06,0.73]
[1756898253371,0.06,211.07,211.06,0.03]
[1756898253557,30.47731667,211.07,211.06,0.03]
[1756898253861,31.14731667,211.07,211.06,0.03]
[1756898257651,30.47731667,211.07,211.06,0.03]
[1756898258957,5.14731667,211.07,211.06,0.03]
[1756898261867,0.06,211.07,211.06,0.03]
[1756898262185,4.47731667,211.07,211.06,0.03]
[1756898262674,5.15731667,211.07,211.06,0.03]
[1756898263463,31.15731667,211.07,211.06,0.03]
[1756898263949,5.15731667,211.07,211.06,0.03]
[1756898264266,18.75291068,211.07,211.06,0.03]
[1756898264468,20.65256162,211.07,211.06,0.03]
[1756898265963,40.65256162,211.07,211.06,0.03]
[1756898266158,77.41256162,211.07,211.06,0.03]
[1756898269649,39.59559401,211.04,211.03,0.03]
[1756898269851,44.01291068,211.04,211.03,0.03]
[1756898270063,81.47291068,211.04,211.03,0.03]
[1756898270272,83.37283231,211.04,211.03,0.03]
[1756898272178,87.09515591,211.04,211.03,0.03]
[1756898273489,85.50625768,211.04,211.03,0.03]
[1756898275774,85.50625768,211.04,211.01,0.03]
[1756898275975,16.42401245,211.02,211.01,0.03]
[1756898276181,53.20401245,211.02,211.01,0.03]
[1756898276366,55.78420485,211.02,211.01,0.03]
[1756898278483,55.10420485,211.02,211.01,0.03]
[1756898278685,30.72861084,211.02,211.01,0.73]
[1756898279683,26.0,211.03,211.01,0.73]
[1756898279890,28.82841844,211.02,211.01,0.03]
[1756898280391,28.82841844,211.02,211.01,0.73]
[1756898280973,26.0,211.02,211.01,0.73]
[1756898281173,28.82841844,211.02,211.01,0.73]
[1756898282589,1.89992162,211.03,211.01,0.73]
[1756898283181,2.82841844,211.04,211.01,0.73]
[1756898283487,0.06,211.07,211.01,0.73]
[1756898283488,2.82841844,211.03,211.01,0.73]
[1756898283791,2.82841844,211.02,211.01,0.73]
[1756898284789,26.0,211.05,211.01,0.73]
[1756898284997,2.82841844,211.03,211.01,0.73]
[1756898286493,2.82841844,211.02,211.01,0.03]
[1756898288294,2.82841844,211.02,211.01,0.73]
[1756898289676,26.0,211.05,211.01,0.73]
[1756898290177,26.68,211.05,211.01,0.73]
[1756898290682,0.06,211.03,211.01,0.73]
[1756898290878,0.06,211.03,211.02,0.7]
[1756898293884,0.75,211.03,211.01,0.03]
[1756898294089,0.06,211.03,211.01,0.03]
[1756898294475,0.06,211.03,211.01,0.73]
[1756898295186,0.06,211.03,211.01,0.03]
[1756898295483,0.06,211.03,211.02,0.7]
[1756898295883,0.06,211.03,211.01,0.03]
[1756898296702,0.06,211.03,211.01,0.73]
[1756898298376,2.82841844,211.02,211.01,0.73]
[1756898299888,2.82841844,211.02,211.01,0.03]
[1756898302099,2.82841844,211.02,211.01,0.73]
[1756898302500,2.82841844,211.02,211.01,0.03]
[1756898305303,2.82841844,211.02,211.01,0.73]
[1756898305507,0.06,211.03,211.01,0.73]
[1756898305703,2.82841844,211.02,211.01,0.03]
[1756898306007,2.82841844,211.02,211.01,0.73]
[1756898308102,2.82841844,211.02,211.01,0.03]
[1756898309387,29.51841844,211.02,211.01,0.03]
[1756898310107,27.95974116,211.03,211.01,0.03]
[1756898310311,2.82841844,211.02,211.01,0.73]
[1756898312587,2.82841844,211.02,211.01,0.03]